Cogmind - Beta 14 @@@ ROGUE MODE // 2024.08.07 @ 19:25:17 Player: Daffa0360 Result: Destroyed by MJ-ZXK(R) with Subdweller Machine Gun Performance ------------- Evolutions (0) 0 Regions Visited (3) 600 Robots Destroyed (33) 165 Value Destroyed (665) 665 Prototype IDs (1) 20 Alien Tech Used (0) 0 Bonus (39) 39 TOTAL SCORE: 1489 Bonus ------- Follower Combat Kills 39 Cogmind --------- Core Integrity 0/250 Matter 300/300 Energy 200/200 System Corruption 0% Temperature Cool (0) Movement Walking (190) Ox1 Location -10/Subcaves Parts ------- > --- POWER (1) -------- Subdweller Power Source > --- PROPULSION (2) --- Aluminum Leg > --- UTILITY (2) ------ Small Storage Unit Improved Terrain Scanner > --- WEAPON (2) ------- Riot Gun Makeshift Hammer > --- INVENTORY (8) ---- Improved Heat Sink Weight Redist. System Structural Scanner Signal Interpreter Makeshift Light Armor Plating Makeshift Hacking Suite Light Cannon Rocket Launcher Peak State ------------ > --- POWER ------------ Subdweller Power Source > --- PROPULSION ------- Aluminum Leg Carbon-fiber Leg > --- UTILITY ---------- Small Storage Unit Improved Terrain Scanner > --- WEAPON ----------- Riot Gun Makeshift Hammer > --- INVENTORY -------- Improved Heat Sink Weight Redist. System Structural Scanner Signal Interpreter Terrain Scan Processor Makeshift Hacking Suite Light Cannon Rocket Launcher [Rating: 18] Favorites ----------- Power Light Ion Engine Engine Light Ion Engine Propulsion Aluminum Leg Leg Aluminum Leg Utility Small Storage Unit Device Improved Terrain Scanner Storage Small Storage Unit Weapon Particle Cannon Energy Gun Improved EM Shotgun Energy Cannon Particle Cannon Ballistic Gun Assault Rifle Ballistic Cannon Light Cannon Launcher Rocket Launcher Special Weapon Mining Laser Impact Weapon Makeshift Hammer Build | -11 -10 -10 -10 ------- Run | Yrd Mat Min Sub Slots Evolved . | . . . . Power . | . . . . Propulsion . | . . . . Utility . | . . . . Weapon . | . . . . Parts Attached 26 | 6 8 3 9 Power 4 | 1 1 1 1 Engine 4 | 1 1 1 1 Core . | . . . . Reactor . | . . . . Propulsion 7 | 2 1 1 3 Treads . | . . . . Leg 7 | 2 1 1 3 Wheel . | . . . . Hover . | . . . . Flight . | . . . . Utility 2 | 1 . 1 . Device 1 | . . 1 . Storage 1 | 1 . . . Processor . | . . . . Hackware . | . . . . Protection . | . . . . Artifact . | . . . . Weapon 13 | 2 6 . 5 Energy Gun 4 | 1 1 . 2 Energy Cannon 2 | . 2 . . Ballistic Gun 2 | 1 1 . . Ballistic Cannon 1 | . 1 . . Launcher 2 | . 1 . 1 Special Weapon 1 | . . . 1 Impact Weapon 1 | . . . 1 Slashing Weapon . | . . . . Piercing Weapon . | . . . . Special Melee Weapon . | . . . . Unidentified Prototypes 1 | . 1 . . Parts Lost 6 | . 1 1 4 Power 1 | . . . 1 Propulsion 4 | . 1 1 2 Utility . | . . . . Weapon 1 | . . . 1 Highest Loss Streak 3 | . 1 1 3 To Critical Strikes . | . . . . Average Slot Usage (%) 89 | . 84 91 92 Engine 12 | . 14 14 8 Leg 26 | . 27 25 27 Device 7 | . . 8 14 Storage 14 | . 14 14 14 Energy Gun 12 | . 14 14 9 Energy Cannon 5 | . 2 14 2 Ballistic Gun 3 | . 10 . . Special Weapon 1 | . . . 5 Impact Weapon 2 | . . . 8 Peak Build Rating 18 | 6 10 13 18 Average Rating 10 | 4 6 11 15 On Entrance 7 | . 6 10 13 Naked Turns . | . . . . Heaviest Build 19 | 12 15 18 19 Greatest Support 30 | 20 20 20 30 Greatest Overweight (x) 1 | . 1 1 1 Average Overweight (x) . | . . . . Largest Inventory Capacity 8 | 8 8 8 8 Average Capacity 7 | 6 8 8 8 Most Carried 8 | 3 8 8 8 Average Carried 6 | . 5 7 7 Final Capacity 8 | 8 8 8 8 Final Carried 8 | 1 8 8 8 Class Distribution -------------------- 61% | Mutant 38% | Scavenger-Mutant Dominant Class ---------------- Mutant | -10/Materials Scavenger-Mutant | -10/Mines Scavenger-Mutant | -10/Subcaves Resources | -11 -10 -10 -10 ----------- Run | Yrd Mat Min Sub Matter Collected 695 | 207 214 89 185 Remotely . | . . . . Salvage Created 781 | 13 464 117 187 Parts 55 | 4 29 9 13 Haulers Intercepted 2 | . 2 . . Recyclers Shooed 1 | . 1 . . Parts Field Recycled . | . . . . Retrieved Matter . | . . . . Parts Self-Destructed 6 | . . . 6 Prevented 1 | . . . 1 Kills | -11 -10 -10 -10 ------- Run | Yrd Mat Min Sub Combat Hostiles Destroyed 22 | . 10 4 8 Melee 2 | . . . 2 Guns 13 | . 9 1 3 Cannons 4 | . 1 3 . AOE 3 | . . . 3 Classes Destroyed 9 | 1 6 . 2 Builder 1 | . 1 . . Tunneler 2 | 1 . 1 . Hauler 2 | . 2 . . Operator 1 | . 1 . . Turret 2 | . . . 2 Watcher 3 | . 3 . . Swarmer 12 | . 5 3 4 Grunt 8 | . 5 1 2 Subdweller 2 | . . . 2 Best Kill Streak 4 | 1 4 2 4 Combat Bots Only 4 | . 3 2 4 Max Kills in Single Turn 2 | 1 2 1 1 Gunslinging . | . . . . Exploded 1 | . . . 1 Melee 1 | . . . 1 Uniques/NPCs Destroyed . | . . . . Combat | -11 -10 -10 -10 -------- Run | Yrd Mat Min Sub Hostile Shots Fired 151 | . 45 24 82 Missed 51 | . 10 15 26 Damage Taken 1235 | . 396 149 690 Core 254 | . 78 33 143 Absorbed by Shields . | . . . . Core Remaining (%) 100 | 100 . . . Volleys Fired 97 | 1 49 18 29 Largest 2 | 2 2 2 1 Hottest 113 | 70 113 113 100 Shots Fired 144 | 2 94 19 29 Gun 107 | 2 87 6 12 Cannon 18 | . 5 13 . Launcher 12 | . 2 . 10 Special 7 | . . . 7 Kinetic 43 | 1 42 . . Thermal 66 | 1 45 13 7 Explosive 12 | . 2 . 10 Electromagnetic 23 | . 5 6 12 Robot Hit Streak 10 | 1 10 3 7 Robot Miss Streak 7 | . 7 6 2 Penetration Max . | . . . . Secondary Targets 2 | . 2 . . Max Gunslinging Chain 1 | . 1 . . Shots Hit Robots 89 | 1 53 8 27 Core Hits 44 | 1 24 5 14 Critical Kills . | . . . . Critical Parts Destroyed . | . . . . Critical Strikes 2 | . 2 . . Burn 2 | . 2 . . Melee Attacks 18 | . . . 18 Impact 18 | . . . 18 Slashing . | . . . . Piercing . | . . . . Sneak Attacks . | . . . . Combat Hostiles . | . . . . Follow-up Attacks . | . . . . Damage Inflicted 2037 | 13 812 175 1037 Guns 832 | 13 651 52 116 Cannons 201 | . 78 123 . Explosions 625 | . 83 . 542 Melee 379 | . . . 379 Ramming . | . . . . Kinetic 314 | 13 301 . . Thermal 596 | . 400 123 73 Explosive 497 | . 28 . 469 Electromagnetic 251 | . 83 52 116 Impact 379 | . . . 379 Slashing . | . . . . Piercing . | . . . . Highest Corruption . | . . . . Average Corruption . | . . . . Corruption Purged . | . . . . Corruption Blocked . | . . . . Overload Shots . | . . . . Overflow Damage 60 | . 1 . 59 Projectiles . | . . . . Explosions 1 | . 1 . . Melee 59 | . . . 59 Knockbacks 1 | . . . 1 Impact 1 | . . . 1 Kinetic . | . . . . Secondary . | . . . . Self-Inflicted Damage 66 | . 32 . 34 Shots 3 | . 2 . 1 Rammed . | . . . . Targets Rammed . | . . . . Kicked . | . . . . Crushed . | . . . . Highest Temperature 197 | 9 197 131 . Average Temperature 39 | 6 37 46 . Received Heat Transfer 360 | . 102 45 213 Siege Activations . | . . . . Robots Corrupted . | . . . . Combat Hostiles . | . . . . Parts Fried . | . . . . Impact Corruptions 4 | . . . 4 Robots Melted . | . . . . Combat Hostiles . | . . . . Parts Melted 2 | . 1 1 . Heat Transferred 1532 | . 1210 222 100 Parts Sabotaged . | . . . . Parts Stolen . | . . . . Parts Stripped . | . . . . Power Chain Reactions 2 | . 1 . 1 Alert | -11 -10 -10 -10 ------- Run | Yrd Mat Min Sub Peak Influence 242 | 5 180 242 . Initial 40 | . 3 40 . Average 82 | . 67 107 . Maximum Alert Level 1 | . . 1 . Low Security (%) 90 | 100 100 77 . Level 1 9 | . . 22 . Level 2 . | . . . . Level 3 . | . . . . Level 4 . | . . . . Level 5 . | . . . . High Security . | . . . . Max Security . | . . . . Squads Dispatched 2 | . 2 . . Investigation 1 | . 1 . . Extermination . | . . . . Reinforcement 1 | . 1 . . Assault . | . . . . Garrison . | . . . . Intercept . | . . . . Searches Triggered . | . . . . Construction Impeded . | . . . . Haulers Reinforced . | . . . . Active Scanning Responses . | . . . . Cargo Convoy Interrupts . | . . . . Stealth | -11 -10 -10 -10 --------- Run | Yrd Mat Min Sub Distress Signals 1 | . 1 . . Communications Jammed . | . . . . Distress Signals . | . . . . Times Spotted 44 | . 18 8 18 Peak Tracking Total 5 | . 4 3 5 Tactical Retreats 6 | . 1 1 4 Traps | -11 -10 -10 -10 ------- Run | Yrd Mat Min Sub Traps Triggered 2 | . 2 . . Indirectly . | . . . . Trap Hack Attempts . | . . . . Triggered . | . . . . Disarmed . | . . . . Reprogrammed . | . . . . Reused . | . . . . Traps Extracted . | . . . . Installed . | . . . . Triggered . | . . . . Machines | -11 -10 -10 -10 ---------- Run | Yrd Mat Min Sub Machines Disabled 6 | . 1 2 3 Max in Single Turn 2 | . 1 1 2 Machines Repaired . | . . . . Machines Dismantled . | . . . . Machines Sabotaged . | . . . . Overloaded Fab Kills . | . . . . Hacking | -11 -10 -10 -10 --------- Run | Yrd Mat Min Sub Machines Accessed 4 | . 2 . 2 Terminals 2 | . 2 . . Fabricators . | . . . . Repair Stations . | . . . . Recycling Units . | . . . . Scanalyzers . | . . . . Garrison Access . | . . . . Total Hacks 7 | . 4 . 3 Successful 6 | . 3 . 3 Failed 1 | . 1 . . Catastrophic . | . . . . Database Lockouts . | . . . . Manual 1 | . 1 . . Terminals 4 | . 4 . . Fabricators . | . . . . Repair Stations . | . . . . Recycling Units . | . . . . Scanalyzers . | . . . . Garrison Access . | . . . . Terminal Hacks 6 | . 3 . 3 Record 1 | . . . 1 Open Door 1 | . . . 1 Alert Level 1 | . 1 . . Locate Traps 1 | . 1 . . Zone Layout 1 | . 1 . . Release Object 1 | . . . 1 Fabricator Hacks . | . . . . Repair Station Hacks . | . . . . Recycling Unit Hacks . | . . . . Scanalyzer . | . . . . Garrison Access Hacks . | . . . . Unauthorized Hacks . | . . . . Terminals . | . . . . Fabricators . | . . . . Repair Stations . | . . . . Recycling Units . | . . . . Scanalyzers . | . . . . Garrison Access . | . . . . Data Cores Recovered . | . . . . Used . | . . . . Hacking Detections 1 | . 1 . . Full Trace Events . | . . . . Feedback Events . | . . . . Feedback Blocked . | . . . . Robot Schematics Acquired . | . . . . Robots Built . | . . . . Authchips . | . . . . Time . | . . . . Total Robot Build Rating . | . . . . Part Schematics Acquired . | . . . . Parts Built . | . . . . Authchips . | . . . . Time . | . . . . Total Part Build Rating . | . . . . Parts Repaired . | . . . . Time . | . . . . Parts Recycled . | . . . . Recycled Matter . | . . . . Retrieved Matter . | . . . . Retrieved Components . | . . . . Parts Scanalyzed . | . . . . Part Schematics Acquired . | . . . . Parts Damaged . | . . . . Bothacking | -11 -10 -10 -10 ------------ Run | Yrd Mat Min Sub Used RIF Installer . | . . . . Robots Hacked . | . . . . Non-combat . | . . . . Combat . | . . . . Robot Hacks Applied . | . . . . Relay Couplers Released . | . . . . Fabnet Peak Effective % . | . . . . Robots Rewired . | . . . . Allies Hacked . | . . . . Hacks Repelled . | . . . . Allies | -11 -10 -10 -10 -------- Run | Yrd Mat Min Sub Total Allies 1 | . . 1 . Largest Group 1 | . . 1 1 Highest-Rated Group 31 | . . 31 31 Highest-Rated Ally 31 | . . 31 31 Total Orders . | . . . . Ally Attacks 13 | . . 9 4 Total Damage 172 | . . 151 21 Kills 3 | . . 3 . Allies Corrupted . | . . . . Allies Melted . | . . . . Intel | -11 -10 -10 -10 ------- Run | Yrd Mat Min Sub Robot Analysis Total . | . . . . Derelict Logs Recovered 2 | . . 2 . Drone Launches . | . . . . Drone Recoveries . | . . . . Exploration | -11 -10 -10 -10 ------------- Run | Yrd Mat Min Sub Turns Passed 3037 | 77 1081 888 991 Spaces Moved 1750 | 54 672 577 447 Core 4 | 4 . . . Treads . | . . . . Legs 1746 | 50 672 577 447 Wheels . | . . . . Hover . | . . . . Flight . | . . . . Fastest Speed 50 | 50 120 120 120 Average Speed 123 | 114 120 130 120 Slowest Speed 190 | 120 190 190 190 Overloaded Moves . | . . . . Propulsion Burnouts . | . . . . Robots Hopped . | . . . . Cave-ins Triggered . | . . . . Exploration Rate (%) 50 | 4 85 93 21 Regions Visited 3 Branch Regions 2 Pre-discovered Areas 1 | . . 1 . Known Exits Taken . | . . . . Unknown Exits Taken 3 | 1 1 1 . Scrap Searched 4 | . . 1 3 Spaces Dug 7 | . 6 . 1 Terrain Destroyed 62 | . 20 . 42 Melee 1 | . . . 1 Projectile . | . . . . AOE 61 | . 20 . 41 Terrain Rammed . | . . . . Walls Destroyed . | . . . . Machines Disabled . | . . . . Actions | -11 -10 -10 -10 --------- Run | Yrd Mat Min Sub Total 2452 | 67 849 697 839 Wait 523 | . 101 96 326 Move 1747 | 53 671 576 447 Hop . | . . . . Pick Up 27 | 7 14 2 4 Fast Attach 4 | . . 1 3 Attach 11 | 6 3 1 1 Detach . | . . . . Swap 11 | . 5 1 5 Drop 13 | . 6 2 5 Fire 97 | 1 49 18 29 Melee 18 | . . . 18 Ram . | . . . . Kick . | . . . . Crush . | . . . . Escape Stasis . | . . . . Rewire . | . . . . Trap . | . . . . Miscellaneous 1 | . . . 1 Route ------- -11/Scrapyard -10/Materials (discovered 4 exits: [*Mat x3] / [*Min]) -10/Mines (discovered 3 exits: [*Mat x2] / *Sub) -10/Subcaves (discovered 2 exits: [*Mat] / [*Rec]) History --------- Turn | Location | Event 17 | -11/Scrapyard | Discovered new exit (range 15) 78 | -11/Scrapyard | Entered Materials 307 | -10/Materials | Build established: Mutant 309 | -10/Materials | Discovered new exit (range 5) 806 | -10/Materials | Discovered new exit (range 9) 913 | -10/Materials | Discovered new exit (range 8) 964 | -10/Materials | Discovered new exit (range 8) 1159 | -10/Materials | Entered Mines 1173 | -10/Mines | Escorted by a lone wolf Derelict 1193 | -10/Mines | Learned location of Storage (-8) 1245 | -10/Mines | Learned Materials emergency access door positions 1252 | -10/Mines | Discovered new exit (range 16) 1351 | -10/Mines | Discovered new exit (range 8) 1409 | -10/Mines | Received a Rocket Launcher from a helpful Derelict 1615 | -10/Mines | Discovered new exit (range 11) 1775 | -10/Mines | Build established: Scavenger-Mutant 2047 | -10/Mines | Entered Subcaves 2047 | -10/Subcaves | Accompanied by 1 ally 2057 | -10/Subcaves | Discovered new exit (range 11) 2058 | -10/Subcaves | Core integrity fell below 50% 2095 | -10/Subcaves | Discovered new exit (range 12) 2106 | -10/Subcaves | Curiously followed by a Cobbler waking with a query about "LVR3C" 2258 | -10/Subcaves | A swath of the cavern ceiling suddenly collapsed 2633 | -10/Subcaves | Core integrity fell below 20% 2667 | -10/Subcaves | Lost 3 parts (1p1n1w) 2701 | -10/Subcaves | Shifting Twisted Machinery released Riot Gun 2702 | -10/Subcaves | Shifting Twisted Machinery released Sub. Laser 2828 | -10/Subcaves | Released subatomizers from SUBCON Basin 2939 | -10/Subcaves | Build established: Mutant 3037 | -10/Subcaves | Disturbed a concealed Subdweller 3038 | -10/Subcaves | Destroyed by MJ-ZXK(R) with Subdweller Machine Gun Last Messages --------------- 02831_ Connecting with SUBCON Basin Controls... 02989_ YD-03P(u) tweaks Twisted Machinery. 03019_ Searching scrap... 03019_ Found Enh. Flamer. 03019_ Found 33 Matter. 03020_ Searching scrap... 03020_ Found Piercing Trap. 03020_ Found Mak. Light Armor Plating. 03020_ Found 33 Matter. 03022_ Searching scrap... 03022_ Found Sub. Power Source. 03022_ Found 36 Matter. 03024_ Acquired Sub. Power Source. 03026_ Acquired 10 matter. 03030_ Subatomizers dissect the Enh. Flamer. 03033_ Dropped Terrain Scan Processor. 03033_ Acquired Mak. Light Armor Plating. 03036_ Carbon-fiber Leg destroyed. 03037_ 8I-D0N(R) angrily emerges from the Twisted Machinery. Map ----- +----------------------------------------------------+ | ?????????????????????????????????????????????????? | | ?????????????????????????????????????????????????? | | ?????????????????????????????????????????????????? | | ?????????????????????????????????????????????????? | | ?????????????????????????????????????????????????? | | ?????????????????????????????????????????????????? | | ?????????????????????????????????????????????????? | | ?????????????????????????????????????????????????? | | ?????????????????????????????????????????????????? | | ?????????????????????????????????????????????????? | | ?????????????????????????????????????????????????? | | ?????????????????????????????????????????????????? | | ?????????????????????????????????????????????????? | | ?????????????????????????????????????????????????? | | ??????????????????????????????#?????##???????????? | | ???????????????????????????### ##### #???????????? | | ??????????????????????????## "##?????????? | | ??????????????????????##### ? " ##????????? | | ??????????????????????? ?? " ?????????? | | ??????????????????????? #??# " ?????????? | | ????????????????????????? #?## " ??????""#?? | | ???????????????????????##### ### #??##### "#?? | | ???????????????????????# ;; #?### ##" ### | | ???????????????????????# ;; ### """#"" | | ???????????????????????#;; R ##""" " | | ??????????????????????## @ ;; ##"" " | | ?????????????????????#; R; ; ## #" | | ?????????????????????#; %; O ## #### ## | | ?????????????????????#;!<# #< ######?## ##" | | ?????????????????????##%#### ##?????#?# "" | | ??????????????????????###? #??###???## ## | | ?????????????????????????#### ###???#???##### | | ???????????????????????#??### ??#?#??????## | | ??????????????????????????#? ??#??#??#??## | | ??????????????????????#???? ########??#?#?## | | ?????????????????????????### ##???#??#??#???## | | ???????????????????????????######??###??########## | | ??????????????????????????#???#?#???#??#####"##??# | | ???????????????????????????????#?##?#?#####"" #### | | ????????????????????????????????#?#########""" ## | | ??????????????????????????????###?## # #"#""#" # | | ??????????????????????????????#"###"" ##"#"#"" # | | ???????????????????????#???#??#"""""######### % | | ????????????????????????????####""####?######## | | ???????????????????????????????#"#"#?###""##### [ | | ???????????????????????????????####""#"# # | | ?????????????????????#?#????#????##"#""## # | | ??????????????????????????#???##??#"#""" # | | ???????????????????????#?????#???##"""#" & | | ????????????????????????#???#?#??#####"" | +----------------------------------------------------+ Best States ------------- Heat Dissipation 25 Energy Generation 15 Energy Capacity 250 Matter Stores 300 Matter Capacity 300 Sight Range 16 Terrain Scan Range 16 Terrain Scan Density 10 Evasion (%) 55 Item Schematics ----------------- None Robot Schematics ------------------ None Fabricated ------------ Nothing Alien Tech Used ----------------- None Achievements -------------- None Challenges ------------ None Game ------ Seed UtilityHellfireMount Manual? 0 Play Time 00:20:44 Cumulative 25.9 hours Start 2024.08.07 @ 19:04:53 End 2024.08.07 @ 19:25:17 Sessions 1 Manual Loads 0 Difficulty Rogue Special Mode None Game No. 43 Rogue 39 Adventurer 4 Explorer 0 Win Type - Total 0 Types 0/0/0/0/0/0/0/0/0 Lore% 7 Gallery% 25 Achievement% 17 Wizard Run 0 Options --------- Layout 1 ASCII 0 Keyboard 0 Movement Mouse Keybinds 0 Fullscreen 2 Font 24/Smallcaps Map View 50x35 Zoom Use 0% Tactical HUD 1 Map Filters NONE Filters NONE Steam 1 RUN: 1c1f2885-947d-498f-bfcb-6e792d11058e